Cogmind - Beta 14 @@@ ROGUE MODE // 2025.03.25 @ 21:08:18 Player: canerib Result: Destroyed by H-66 Slayer with Heavy Assault Rifle Performance ------------- Evolutions (5) 2500 Regions Visited (13) 2600 Robots Destroyed (49) 245 Value Destroyed (1975) 1975 Prototype IDs (8) 160 Alien Tech Used (0) 0 Bonus (2194) 2194 TOTAL SCORE: 9674 Bonus ------- High Alert Combat Kills 182 Follower Combat Kills 1757 Built Enhanced Grunts 300 Friendly Fire -45 Cogmind --------- Core Integrity 0/1000 Matter 300/300 Energy 100/100 System Corruption 0% Temperature Cool (0) Movement Hovering (80) Location -5/Upper Caves Parts ------- > --- POWER (1) -------- (None) > --- PROPULSION (5) --- Combat Gravmag System > --- UTILITY (7) ------ Improved Heat Sink Core Analyzer Advanced ECM Suite > --- WEAPON (4) ------- (None) > --- INVENTORY (5) ---- Improved Target Analyzer Improved Weapon Cycler Microactuators Advanced Shield Generator Makeshift System Shield Peak State ------------ > --- POWER ------------ Neutrino Core > --- PROPULSION ------- Medium Treads Improved Medium Treads Improved Medium Treads Centrium Heavy Treads > --- UTILITY ---------- Advanced Heat Sink Large Storage Unit Enhanced Optical Array Core Analyzer Advanced ECM Suite Layered Medium Armor Plating Improved Corruption Screen > --- WEAPON ----------- Gatling Laser Advanced Variable Charge Gun Flak Gun Heavy Shock Bomb Launcher > --- INVENTORY -------- Antimatter Reactor Linear Gravjet Combat Gravmag System Improved Heat Sink Improved Target Analyzer Improved Weapon Cycler Microactuators Medium Reflective Plating Focal Shield Advanced Hacking Suite Mini Grenade Launcher [Rating: 95] Favorites ----------- Power Neutrino Core Engine Light Angular Momentum Engine Power Core Neutrino Core Reactor Cold Fusion Reactor Propulsion Improved Medium Treads Treads Improved Medium Treads Leg Flexi-carbon Leg Hover Unit Improved Gravmag System Flight Unit Cesium-ion Thruster Utility Signal Interpreter Device Advanced ECM Suite Storage Large Storage Unit Processor Signal Interpreter Hackware Advanced Hacking Suite Protection Utility Shielding Weapon Flak Gun Energy Gun Advanced Variable Charge Gun Ballistic Gun Flak Gun Launcher Mini Grenade Launcher Slashing Weapon Mining Claw Build | -11 -10 -9 -8 -8 -7 -6 -6 -6 -6 -6 -5 -5 -5 ------- Run | Yrd Mat Mat Mat Sto Fac Fac Ext Cet Arc Hub Fac Upp Upp Slots Evolved 10 | . . 2 2 . 2 2 . . . . 2 . . Power . | . . . . . . . . . . . . . . Propulsion 3 | . . 1 1 . . 1 . . . . . . . Utility 5 | . . 1 1 . 2 1 . . . . . . . Weapon 2 | . . . . . . . . . . . 2 . . Parts Attached 120 | 6 5 5 12 4 16 7 33 3 1 2 17 6 3 Power 12 | 1 . . 1 . 1 2 3 1 1 . 1 1 . Engine 7 | 1 . . . . 1 1 2 1 . . . 1 . Core 2 | . . . 1 . . . . . 1 . . . . Reactor 3 | . . . . . . 1 1 . . . 1 . . Propulsion 45 | 2 3 3 5 1 6 3 14 1 . . 5 1 1 Treads 6 | . . . . . . . 5 1 . . . . . Leg 11 | 2 . . . . . . 9 . . . . . . Wheel . | . . . . . . . . . . . . . . Hover 7 | . . . . . . . . . . . 5 1 1 Flight 21 | . 3 3 5 1 6 3 . . . . . . . Utility 41 | 1 2 2 4 1 8 2 8 . . 1 8 3 1 Device 26 | 1 2 . 4 1 5 1 6 . . 1 3 1 1 Storage 1 | . . . . . . . . . . . 1 . . Processor 6 | . . 1 . . 2 1 . . . . 2 . . Hackware 1 | . . . . . . . . . . . . 1 . Protection 7 | . . 1 . . 1 . 2 . . . 2 1 . Artifact . | . . . . . . . . . . . . . . Weapon 22 | 2 . . 2 2 1 . 8 1 . 1 3 1 1 Energy Gun 3 | . . . . . . . 1 1 . . 1 . . Energy Cannon . | . . . . . . . . . . . . . . Ballistic Gun 8 | 2 . . . 1 1 . 1 . . 1 1 . 1 Ballistic Cannon . | . . . . . . . . . . . . . . Launcher 4 | . . . 2 . . . . . . . 1 1 . Special Weapon . | . . . . . . . . . . . . . . Impact Weapon . | . . . . . . . . . . . . . . Slashing Weapon 7 | . . . . 1 . . 6 . . . . . . Piercing Weapon . | . . . . . . . . . . . . . . Special Melee Weapon . | . . . . . . . . . . . . . . Unidentified Prototypes 4 | . 1 . . 1 . . . 2 . . . . . Corrupted Parts 1 | . . . . . . . 1 . . . . . . System Corruption 4 | . . . . . . . 4 . . . . . . Parts Lost 58 | . . . 1 4 1 6 18 1 . . 16 1 10 Power 6 | . . . . 1 . . 2 1 . . 1 1 . Propulsion 25 | . . . . 2 1 4 9 . . . 4 . 5 Utility 16 | . . . . . . 1 5 . . . 6 . 4 Weapon 11 | . . . 1 1 . 1 2 . . . 5 . 1 Highest Loss Streak 14 | . . . 1 3 1 4 6 1 . . 14 1 4 To Critical Strikes 1 | . . . . . . . 1 . . . . . . Average Slot Usage (%) 88 | . 100 99 95 94 95 89 83 92 93 93 90 76 43 Engine 3 | . 14 11 5 . 4 1 2 5 . . . . 2 Core 1 | . . . 3 9 . . . . 5 6 4 . . Treads 11 | . . . . . . . 16 26 26 26 21 . . Leg 1 | . 1 . . . . . 7 . . . . . . Hover 1 | . . . . . . . . . . . . 29 12 Flight 10 | . 26 32 36 35 28 26 . . . . . . . Device 18 | . 28 13 18 18 22 24 16 20 20 21 18 11 12 Processor 11 | . . 8 9 9 15 13 15 13 13 11 7 11 5 Protection 7 | . . 11 9 9 6 6 8 13 13 13 4 5 . Energy Gun 3 | . . . . . . . 3 6 6 6 10 . . Ballistic Gun 7 | . 28 22 13 4 7 3 3 6 6 6 10 . 1 Slashing Weapon 2 | . . . . 9 7 6 5 . . . . . . Peak Build Rating 95 | 6 13 17 26 26 38 47 63 77 78 83 95 67 64 Average Rating 50 | 5 12 15 22 23 31 41 51 73 77 79 86 63 33 On Entrance 39 | . 6 13 16 26 19 38 35 58 77 78 82 46 64 Naked Turns . | . . . . . . . . . . . . . . Heaviest Build 67 | 7 8 9 11 13 21 24 38 39 44 46 67 48 47 Greatest Support 168 | 20 20 15 20 20 33 29 146 168 168 168 168 49 53 Greatest Overweight (x) 4 | . 1 . . . . . 4 . . . 2 . 1 Average Overweight (x) . | . . . . . . . . . . . . . . Largest Inventory Capacity 15 | 5 5 5 5 5 5 5 5 5 5 5 15 15 15 Average Capacity 6 | 5 5 5 5 5 5 5 5 5 5 5 14 15 7 Most Carried 15 | 4 5 5 5 5 5 5 5 5 5 5 15 9 8 Average Carried 4 | 2 4 4 3 4 4 4 3 4 5 4 8 7 5 Final Capacity 15 | 5 5 5 5 5 5 5 5 5 5 5 15 15 5 Final Carried 10 | 4 5 5 5 4 5 5 4 5 5 5 10 8 5 Class Distribution -------------------- 32% | Scavenger-Mutant 22% | Scout 21% | Mutant 8% | Scavenger-Tank 4% | Sprinter 3% | Commander-Mutant Dominant Class ---------------- Mutant | -10/Materials Mutant | -9/Materials Scout | -8/Materials Scout | -8/Storage Scout | -7/Factory Scout | -6/Factory Scavenger-Mutant | -6/Extension Scavenger-Mutant | -6/Cetus Scavenger-Mutant | -6/Archives Scavenger-Mutant | -6/Hub_04(d) Scavenger-Tank | -5/Factory Mutant | -5/Upper Caves Mutant | -5/Upper Caves Resources | -11 -10 -9 -8 -8 -7 -6 -6 -6 -6 -6 -5 -5 -5 ----------- Run | Yrd Mat Mat Mat Sto Fac Fac Ext Cet Arc Hub Fac Upp Upp Matter Collected 2072 | 281 . 165 16 . 281 . 572 107 59 . 339 176 76 Remotely . | . . . . . . . . . . . . . . Salvage Created 1943 | 59 . 221 61 . 151 . 467 87 88 . 746 17 46 Parts 92 | 11 . 11 . . 6 . 21 2 . . 36 1 4 Haulers Intercepted 4 | . . 3 . . 1 . . . . . . . . Recyclers Shooed 1 | . . . . . . . . . . . 1 . . Parts Field Recycled . | . . . . . . . . . . . . . . Retrieved Matter . | . . . . . . . . . . . . . . Parts Self-Destructed 3 | . . . . . . . . . . . . . 3 Prevented . | . . . . . . . . . . . . . . Kills | -11 -10 -9 -8 -8 -7 -6 -6 -6 -6 -6 -5 -5 -5 ------- Run | Yrd Mat Mat Mat Sto Fac Fac Ext Cet Arc Hub Fac Upp Upp Combat Hostiles Destroyed 36 | . . 1 1 . 1 . 8 2 2 . 15 5 1 Melee 5 | . . . . . 1 . 4 . . . . . . Guns 23 | . . 1 1 . . . 4 2 2 . 13 . . AOE 8 | . . . . . . . . . . . 2 5 1 Classes Destroyed 14 | 1 . 3 . . 2 . 3 . . . 5 . . Worker 2 | . . . . . . . . . . . 2 . . Tunneler 4 | 4 . . . . . . . . . . . . . Hauler 4 | . . 3 . . 1 . . . . . . . . Operator 1 | . . . . . 1 . . . . . . . . Watcher 2 | . . 1 . . 1 . . . . . . . . Swarmer 8 | . . . . . . . . . . . 3 5 . Saboteur 1 | . . . . . . . . . . . 1 . . Grunt 14 | . . 1 1 . . . 4 . . . 7 . 1 Brawler 1 | . . . . . . . . . . . 1 . . Duelist 1 | . . . . . . . . . . . 1 . . Sentry 4 | . . . . . . . 2 . 2 . . . . Specialist 2 | . . . . . . . . . . . 2 . . Hunter 1 | . . . . . 1 . . . . . . . . Programmer 1 | . . . . . . . 1 . . . . . . Cetus Guard 2 | . . . . . . . . 2 . . . . . Butcher 1 | . . . . . . . 1 . . . . . . Best Kill Streak 6 | 1 . 2 1 . 1 . 2 2 2 . 6 5 1 Combat Bots Only 5 | . . 1 1 . 1 . 2 2 2 . 5 5 1 Max Kills in Single Turn 3 | 1 . 1 1 . 1 . 1 1 1 . 2 3 1 Gunslinging . | . . . . . . . . . . . . . . Exploded 3 | . . . . . . . . . . . 1 3 1 Melee 1 | . . . . . 1 . 1 . . . . . . Uniques/NPCs Destroyed . | . . . . . . . . . . . . . . Combat | -11 -10 -9 -8 -8 -7 -6 -6 -6 -6 -6 -5 -5 -5 -------- Run | Yrd Mat Mat Mat Sto Fac Fac Ext Cet Arc Hub Fac Upp Upp Hostile Shots Fired 855 | . 3 10 42 35 21 138 279 26 . . 200 22 79 Missed 343 | . 3 2 18 19 10 71 108 10 . . 59 7 36 Damage Taken 7756 | . 42 87 372 233 138 576 1871 463 . . 3004 296 674 Core 1798 | . 14 10 138 73 46 123 334 50 . . 648 77 285 Absorbed by Shields 658 | . . . 57 . . 216 370 15 . . . . . Redirected to Shielding 66 | . . . 16 . . 22 28 . . . . . . Ignored by Resistances 137 | . . . . . . . 30 24 . . . 4 79 Regen/Repaired (Parts) 189 | . . . . . 38 . . . . . 151 . . Core Remaining (%) 80 | 100 94 97 . 61 93 . . . . 40 . . . Volleys Fired 143 | 9 . 25 14 . 13 7 11 11 7 2 33 8 3 Largest 4 | 2 . 2 2 . 1 1 2 2 2 2 4 1 1 Hottest 218 | 40 . 40 40 . 25 25 108 108 108 110 218 30 30 Shots Fired 280 | 18 . 50 22 . 13 7 22 17 9 4 107 8 3 Gun 264 | 18 . 50 22 . 13 7 22 17 9 4 102 . . Cannon . | . . . . . . . . . . . . . . Launcher 16 | . . . . . . . . . . . 5 8 3 Special . | . . . . . . . . . . . . . . Kinetic 201 | 18 . 50 22 . 13 7 11 11 7 2 60 . . Thermal 63 | . . . . . . . 11 6 2 2 42 . . Explosive 11 | . . . . . . . . . . . . 8 3 Electromagnetic 5 | . . . . . . . . . . . 5 . . Robot Hit Streak 21 | 4 . 5 6 . 2 7 9 21 6 11 11 2 . Robot Miss Streak 8 | 4 . 4 2 . 2 . 4 6 3 1 8 5 . Penetration Max . | . . . . . . . . . . . . . . Secondary Targets 7 | . . . . . . . . 1 . . 6 . . Max Gunslinging Chain 1 | . . . . . . . . 1 . . 1 . . Shots Hit Robots 247 | 10 . 29 15 . 18 8 56 16 8 3 80 4 . Core Hits 179 | 5 . 9 4 . 5 . 28 23 9 2 80 11 3 Critical Kills . | . . . . . . . . . . . . . . Critical Parts Destroyed 1 | . . . 1 . . . . . . . . . . Critical Strikes 5 | . . . 1 . . . 4 . . . . . . Destroy 1 | . . . 1 . . . . . . . . . . Sever 4 | . . . . . . . 4 . . . . . . Melee Attacks 63 | . . . . 1 16 3 43 . . . . . . Impact . | . . . . . . . . . . . . . . Slashing 63 | . . . . 1 16 3 43 . . . . . . Piercing . | . . . . . . . . . . . . . . Sneak Attacks 2 | . . . . . 1 . 1 . . . . . . Combat Hostiles . | . . . . . . . . . . . . . . Follow-up Attacks 6 | . . . . . . . 6 . . . . . . Damage Inflicted 6629 | 115 . 304 156 . 400 161 1847 417 166 88 2160 512 303 Guns 3709 | 115 . 304 156 . 107 112 429 417 166 88 1815 . . Cannons . | . . . . . . . . . . . . . . Explosions 1160 | . . . . . . . . . . . 345 512 303 Melee 1760 | . . . . . 293 49 1418 . . . . . . Ramming . | . . . . . . . . . . . . . . Kinetic 2292 | 115 . 304 156 . 107 112 157 229 134 28 950 . . Thermal 1417 | . . . . . . . 272 188 32 60 865 . . Explosive 815 | . . . . . . . . . . . . 512 303 Electromagnetic 345 | . . . . . . . . . . . 345 . . Impact . | . . . . . . . . . . . . . . Slashing 1760 | . . . . . 293 49 1418 . . . . . . Piercing . | . . . . . . . . . . . . . . Highest Corruption 8 | . . . . . 2 . 8 8 8 8 . . . Average Corruption 6 | . . . . . 1 . 6 8 8 8 . . . Corruption Purged . | . . . . . . . . . . . . . . Corruption Blocked 9 | . . . . . . . . . . . 9 . . Effects 59 | . . . . . 8 . 24 11 10 6 . . . Message Errors 14 | . . . . . 2 . 6 3 1 2 . . . Matter Fused 12 | . . . . . 1 . 6 2 1 2 . . . Heat Flow Errors 8 | . . . . . 2 . 1 1 3 1 . . . Energy Discharges 12 | . . . . . 2 . 6 3 . 1 . . . Parts Rejected 1 | . . . . . . . 1 . . . . . . Data Loss (minor) 8 | . . . . . 1 . 1 2 4 . . . . Data Loss (major) 4 | . . . . . . . 3 . 1 . . . . Overload Shots . | . . . . . . . . . . . . . . Overflow Damage 43 | . . . . . 21 . 1 . . . . 21 . Projectiles . | . . . . . . . . . . . . . . Explosions 21 | . . . . . . . . . . . . 21 . Melee 22 | . . . . . 21 . 1 . . . . . . Knockbacks . | . . . . . . . . . . . . . . Impact . | . . . . . . . . . . . . . . Kinetic . | . . . . . . . . . . . . . . Secondary . | . . . . . . . . . . . . . . Self-Inflicted Damage 47 | . . . . . . . . . . . . 47 . Shots 1 | . . . . . . . . . . . . 1 . Rammed . | . . . . . . . . . . . . . . Targets Rammed . | . . . . . . . . . . . . . . Kicked . | . . . . . . . . . . . . . . Crushed . | . . . . . . . . . . . . . . Highest Temperature 215 | . . 12 17 23 141 6 82 136 210 204 215 . . Average Temperature 43 | . . 6 6 7 67 4 32 79 95 111 59 . . Received Heat Transfer 1597 | . . 48 178 144 . 154 368 63 . . 480 9 153 Siege Activations . | . . . . . . . . . . . . . . Robots Corrupted . | . . . . . . . . . . . . . . Combat Hostiles . | . . . . . . . . . . . . . . Parts Fried 1 | . . . . . . . . . . . 1 . . Impact Corruptions . | . . . . . . . . . . . . . . Robots Melted . | . . . . . . . . . . . . . . Combat Hostiles . | . . . . . . . . . . . . . . Parts Melted . | . . . . . . . . . . . . . . Heat Transferred 2692 | . . . . . . . 575 425 37 74 1581 . . Parts Sabotaged . | . . . . . . . . . . . . . . Parts Stolen . | . . . . . . . . . . . . . . Parts Stripped . | . . . . . . . . . . . . . . Power Chain Reactions 1 | . . . . . . . . . . . 1 . . Alert | -11 -10 -9 -8 -8 -7 -6 -6 -6 -6 -6 -5 -5 -5 ------- Run | Yrd Mat Mat Mat Sto Fac Fac Ext Cet Arc Hub Fac Upp Upp Peak Influence 742 | 20 95 115 262 287 329 496 460 368 259 131 742 . . Initial 242 | . 13 22 48 117 116 87 242 149 147 90 63 . . Average 234 | 8 47 58 92 200 162 220 305 234 244 97 429 . . Maximum Alert Level 3 | . . . 1 1 1 2 2 1 1 . 3 . . Low Security (%) 46 | 100 100 100 92 53 74 52 3 41 13 100 30 . . Level 1 40 | . . . 7 46 25 33 89 58 86 . 1 . . Level 2 11 | . . . . . . 14 6 . . . 62 . . Level 3 . | . . . . . . . . . . . 6 . . Level 4 . | . . . . . . . . . . . . . . Level 5 . | . . . . . . . . . . . . . . High Security . | . . . . . . . . . . . . . . Max Security . | . . . . . . . . . . . . . . Squads Dispatched 22 | . . 1 . 1 2 4 2 1 . . 11 . . Investigation 7 | . . . . . . 2 2 1 . . 2 . . Extermination 2 | . . . . . 1 . . . . . 1 . . Reinforcement 9 | . . 1 . 1 1 2 . . . . 4 . . Assault 1 | . . . . . . . . . . . 1 . . Garrison 3 | . . . . . . . . . . . 3 . . Intercept . | . . . . . . . . . . . . . . Searches Triggered . | . . . . . . . . . . . . . . Construction Impeded 1 | . . . . . . . . . . . 1 . . Haulers Reinforced 2 | . . . . . 1 . . . . . 1 . . Active Scanning Responses . | . . . . . . . . . . . . . . Cargo Convoy Interrupts . | . . . . . . . . . . . . . . Stealth | -11 -10 -9 -8 -8 -7 -6 -6 -6 -6 -6 -5 -5 -5 --------- Run | Yrd Mat Mat Mat Sto Fac Fac Ext Cet Arc Hub Fac Upp Upp Distress Signals 8 | . 1 1 2 1 1 . . . . 1 1 . . Communications Jammed . | . . . . . . . . . . . . . . Distress Signals . | . . . . . . . . . . . . . . Times Spotted 209 | . 8 4 23 24 19 26 28 8 7 2 37 9 14 Peak Tracking Total 21 | . 7 4 14 21 5 13 4 5 2 2 9 4 5 Tactical Retreats 25 | . 1 . 3 1 5 5 . . . . 2 1 7 Traps | -11 -10 -9 -8 -8 -7 -6 -6 -6 -6 -6 -5 -5 -5 ------- Run | Yrd Mat Mat Mat Sto Fac Fac Ext Cet Arc Hub Fac Upp Upp Traps Triggered 11 | . 1 . . . . . 7 . . . 3 . . Indirectly . | . . . . . . . . . . . . . . Trap Hack Attempts . | . . . . . . . . . . . . . . Triggered . | . . . . . . . . . . . . . . Disarmed . | . . . . . . . . . . . . . . Reprogrammed 6 | . 6 . . . . . . . . . . . . Reused . | . . . . . . . . . . . . . . Traps Extracted . | . . . . . . . . . . . . . . Installed . | . . . . . . . . . . . . . . Triggered . | . . . . . . . . . . . . . . Machines | -11 -10 -9 -8 -8 -7 -6 -6 -6 -6 -6 -5 -5 -5 ---------- Run | Yrd Mat Mat Mat Sto Fac Fac Ext Cet Arc Hub Fac Upp Upp Machines Disabled 6 | . . . . 1 . . . 1 . . 4 . . Max in Single Turn 1 | . . . . 1 . . . . . . 1 . . Garrison Access 1 | . . . . . . . . . . . 1 . . Machines Repaired . | . . . . . . . . . . . . . . Machines Dismantled . | . . . . . . . . . . . . . . Machines Sabotaged . | . . . . . . . . . . . . . . Overloaded Fab Kills . | . . . . . . . . . . . . . . Hacking | -11 -10 -9 -8 -8 -7 -6 -6 -6 -6 -6 -5 -5 -5 --------- Run | Yrd Mat Mat Mat Sto Fac Fac Ext Cet Arc Hub Fac Upp Upp Machines Accessed 57 | . 6 1 5 3 9 9 13 3 1 2 5 . . Terminals 43 | . 6 . 4 3 5 4 13 3 . 2 3 . . Fabricators 1 | . . . . . 1 . . . . . . . . Repair Stations 6 | . . . 1 . 3 1 . . . . 1 . . Recycling Units . | . . . . . . . . . . . . . . Scanalyzers 4 | . . 1 . . . 3 . . . . . . . Garrison Access 2 | . . . . . . 1 . . . . 1 . . Total Hacks 169 | . 14 5 13 9 32 19 30 5 25 5 12 . . Successful 88 | . 7 4 6 4 14 7 10 1 25 3 7 . . Failed 81 | . 7 1 7 5 18 12 20 4 . 2 5 . . Catastrophic 20 | . 3 . 1 1 4 3 5 1 . . 2 . . Database Lockouts . | . . . . . . . . . . . . . . Manual 43 | . 8 . 5 6 9 4 5 1 . 3 2 . . Terminals 106 | . 14 . 11 9 20 5 30 5 . 5 7 . . Fabricators 6 | . . . . . 6 . . . . . . . . Repair Stations 11 | . . . 2 . 6 1 . . . . 2 . . Recycling Units . | . . . . . . . . . . . . . . Scanalyzers 15 | . . 5 . . . 10 . . . . . . . Garrison Access 6 | . . . . . . 3 . . . . 3 . . Terminal Hacks 57 | . 5 . 3 2 6 . 10 1 25 1 4 . . Record 27 | . . . . . . . 1 . 25 . 1 . . Prototype ID Bank 1 | . . . . . . . 1 . . . . . . Open Door 6 | . . . . . . . 5 1 . . . . . Level Access Points 1 | . 1 . . . . . . . . . . . . Branch Access Points 1 | . . . 1 . . . . . . . . . . Emergency Access Points 1 | . . . 1 . . . . . . . . . . Alert Level 6 | . 1 . . 1 2 . 1 . . . 1 . . Unreport Threat 4 | . 1 . . . . . 1 . . . 2 . . Locate Traps 1 | . . . . . 1 . . . . . . . . Reprogram Traps 1 | . 1 . . . . . . . . . . . . Security Status 1 | . 1 . . . . . . . . . . . . Registered Components 2 | . . . 1 . 1 . . . . . . . . Registered Prototypes 1 | . . . . . 1 . . . . . . . . Zone Layout 4 | . . . . 1 1 . 1 . . 1 . . . Fabricator Hacks . | . . . . . . . . . . . . . . Repair Station Hacks 10 | . . . 1 . 6 1 . . . . 2 . . Scan Component 5 | . . . 1 . 3 . . . . . 1 . . Repair 4 | . . . . . 3 . . . . . 1 . . Refit 1 | . . . . . . 1 . . . . . . . Recycling Unit Hacks . | . . . . . . . . . . . . . . Scanalyzer 10 | . . 4 . . . 6 . . . . . . . Insert Component 5 | . . 2 . . . 3 . . . . . . . Analyze 5 | . . 2 . . . 3 . . . . . . . Garrison Access Hacks . | . . . . . . . . . . . . . . Unauthorized Hacks 11 | . 2 . 2 2 2 . . . . 2 1 . . Terminals 11 | . 2 . 2 2 2 . . . . 2 1 . . Assimilate 2 | . 2 . . . . . . . . . . . . Botnet 9 | . . . 2 2 2 . . . . 2 1 . . Fabricators . | . . . . . . . . . . . . . . Repair Stations . | . . . . . . . . . . . . . . Recycling Units . | . . . . . . . . . . . . . . Scanalyzers . | . . . . . . . . . . . . . . Garrison Access . | . . . . . . . . . . . . . . Data Cores Recovered 1 | . . . . . 1 . . . . . . . . Used . | . . . . . . . . . . . . . . Hacking Detections 50 | . 5 1 5 3 9 8 10 2 . 2 5 . . Full Trace Events 7 | . . . . . . 2 2 1 . . 2 . . Feedback Events . | . . . . . . . . . . . . . . Feedback Blocked . | . . . . . . . . . . . . . . Robot Schematics Acquired . | . . . . . . . . . . . . . . Robots Built . | . . . . . . . . . . . . . . Authchips . | . . . . . . . . . . . . . . Time . | . . . . . . . . . . . . . . Total Robot Build Rating . | . . . . . . . . . . . . . . Part Schematics Acquired 3 | . . 2 . . . 1 . . . . . . . Parts Built . | . . . . . . . . . . . . . . Authchips . | . . . . . . . . . . . . . . Time . | . . . . . . . . . . . . . . Total Part Build Rating . | . . . . . . . . . . . . . . Parts Repaired 4 | . . . . . 3 . . . . . 1 . . Time 93 | . . . . . 71 . . . . . 22 . . Parts Recycled . | . . . . . . . . . . . . . . Recycled Matter . | . . . . . . . . . . . . . . Retrieved Matter . | . . . . . . . . . . . . . . Retrieved Components . | . . . . . . . . . . . . . . Parts Scanalyzed 5 | . . 2 . . . 3 . . . . . . . Part Schematics Acquired 3 | . . 2 . . . 1 . . . . . . . Parts Damaged . | . . . . . . . . . . . . . . Bothacking | -11 -10 -9 -8 -8 -7 -6 -6 -6 -6 -6 -5 -5 -5 ------------ Run | Yrd Mat Mat Mat Sto Fac Fac Ext Cet Arc Hub Fac Upp Upp Used RIF Installer . | . . . . . . . . . . . . . . Robots Hacked . | . . . . . . . . . . . . . . Non-combat . | . . . . . . . . . . . . . . Combat . | . . . . . . . . . . . . . . Robot Hacks Applied . | . . . . . . . . . . . . . . Relay Couplers Released . | . . . . . . . . . . . . . . Fabnet Peak Effective % . | . . . . . . . . . . . . . . Robots Rewired 11 | . . . . . . . 11 . . . . . . Allies Hacked 1 | . . . . . . . 1 . . . . . . Hacks Repelled . | . . . . . . . . . . . . . . Allies | -11 -10 -9 -8 -8 -7 -6 -6 -6 -6 -6 -5 -5 -5 -------- Run | Yrd Mat Mat Mat Sto Fac Fac Ext Cet Arc Hub Fac Upp Upp Total Allies 28 | . 2 . . . . . 18 5 . . 3 . . Largest Group 12 | . 1 1 1 . . . 11 12 12 9 8 . . Highest-Rated Group 676 | . 10 10 10 . . . 449 676 676 603 575 . . Highest-Rated Ally 159 | . 10 10 10 . . . 159 146 96 96 96 . . Total Orders . | . . . . . . . . . . . . . . Ally Attacks 256 | . . . . . . . 87 47 37 7 78 . . Total Damage 7463 | . . . . . . . 2100 1164 1118 114 2967 . . Kills 51 | . . . . . . . 21 6 3 1 20 . . Allies Corrupted 1 | . . . . . . . . . . . 1 . . Allies Melted . | . . . . . . . . . . . . . . Intel | -11 -10 -9 -8 -8 -7 -6 -6 -6 -6 -6 -5 -5 -5 ------- Run | Yrd Mat Mat Mat Sto Fac Fac Ext Cet Arc Hub Fac Upp Upp Robot Analysis Total . | . . . . . . . . . . . . . . Derelict Logs Recovered 1 | . . . . . . . . . . . . 1 . Drone Launches . | . . . . . . . . . . . . . . Drone Recoveries . | . . . . . . . . . . . . . . Exploration | -11 -10 -9 -8 -8 -7 -6 -6 -6 -6 -6 -5 -5 -5 ------------- Run | Yrd Mat Mat Mat Sto Fac Fac Ext Cet Arc Hub Fac Upp Upp Turns Passed 5440 | 139 188 197 254 119 858 322 1215 381 363 205 734 212 253 Spaces Moved 5521 | 86 366 229 410 323 1057 694 608 211 210 115 363 463 386 Core 11 | 3 . . . . . . 8 . . . . . . Treads 1223 | . . . . . . . 353 211 210 115 334 . . Legs 301 | 83 9 . . . . . 209 . . . . . . Wheels . | . . . . . . . . . . . . . . Hover 878 | . . . . . . . . . . . 29 463 386 Flight 3108 | . 357 229 410 323 1057 694 38 . . . . . . Fastest Speed 26 | 50 37 34 26 26 26 27 37 160 160 160 44 40 40 Average Speed 68 | 117 39 34 30 26 28 31 141 160 160 160 151 40 62 Slowest Speed 250 | 120 120 34 31 29 32 37 250 160 160 160 200 40 118 Overloaded Moves . | . . . . . . . . . . . . . . Propulsion Burnouts . | . . . . . . . . . . . . . . Robots Hopped 71 | . 9 1 12 15 7 26 1 . . . . . . Cave-ins Triggered . | . . . . . . . . . . . . . . Exploration Rate (%) 46 | 4 62 19 38 46 35 24 77 86 99 18 15 66 66 Regions Visited 13 Branch Regions 7 Pre-discovered Areas 1 | . . . . . . . . . . . . 1 . Known Exits Taken 10 | . 1 1 1 1 1 1 1 1 1 1 . . . Unknown Exits Taken 3 | 1 . . . . . . . . . . 1 1 . Scrap Searched 3 | . . . . . . . . . . . . 2 1 Spaces Dug 1 | . . . . . . . 1 . . . . . . Terrain Destroyed 76 | . . . . . . . 1 . . . 1 59 15 Melee 1 | . . . . . . . 1 . . . . . . Projectile 1 | . . . . . . . . . . . 1 . . AOE 74 | . . . . . . . . . . . . 59 15 Terrain Rammed . | . . . . . . . . . . . . . . Walls Destroyed . | . . . . . . . . . . . . . . Machines Disabled . | . . . . . . . . . . . . . . Actions | -11 -10 -9 -8 -8 -7 -6 -6 -6 -6 -6 -5 -5 -5 --------- Run | Yrd Mat Mat Mat Sto Fac Fac Ext Cet Arc Hub Fac Upp Upp Total 6783 | 104 403 304 509 337 1556 755 874 236 229 134 466 481 395 Wait 781 | . 28 32 64 25 448 66 49 9 11 11 37 1 . Move 5377 | 85 348 226 390 292 1044 644 605 210 209 114 362 462 386 Hop 60 | . 8 1 7 15 5 23 1 . . . . . . Pick Up 64 | 4 7 8 10 . 7 3 6 1 . 2 12 4 . Fast Attach 51 | 6 2 . 3 1 5 1 24 3 . . 6 . . Attach 42 | . 3 3 4 1 3 4 6 . . 1 8 6 3 Detach 4 | . . . . . . 1 2 . . . 1 . . Swap 27 | . . 2 5 2 8 2 3 . 1 1 3 . . Drop 58 | . 7 7 12 . 7 1 11 2 1 3 4 . 3 Fire 143 | 9 . 25 14 . 13 7 11 11 7 2 33 8 3 Melee 56 | . . . . 1 16 3 36 . . . . . . Ram . | . . . . . . . . . . . . . . Kick . | . . . . . . . . . . . . . . Crush . | . . . . . . . . . . . . . . Escape Stasis 25 | . . . . . . . 25 . . . . . . Rewire 95 | . . . . . . . 95 . . . . . . Trap . | . . . . . . . . . . . . . . Miscellaneous . | . . . . . . . . . . . . . . Route ------- -11/Scrapyard -10/Materials (discovered 4 exits: *Mat x3 / [*Min]) -9/Materials (discovered 2 exits: *Mat / *Min) -8/Materials (discovered 3 exits: *Fac / *Sto x2) -8/Storage -7/Factory (discovered 2 exits: *Fac / *Low) -6/Factory -6/Extension (discovered 2 exits: *Fac / *Cet) -6/Cetus -6/Archives (discovered 3 exits: *Fac / *Hub x2) -6/Hub_04(d) -5/Factory -5/Upper Caves -5/Upper Caves History --------- Turn | Location | Event 14 | -11/Scrapyard | Discovered new exit (range 15) 140 | -11/Scrapyard | Entered Materials 215 | -10/Materials | Discovered new exit (range 11) 309 | -10/Materials | Discovered new exit (range 14) 310 | -10/Materials | Build established: Mutant 315 | -10/Materials | Identified exit to Materials 328 | -10/Materials | Entered another Materials area 328 | -9/Materials | Accompanied by 1 ally 328 | -9/Materials | Evolved 2 slots: Propulsion x1, Utility x1 395 | -9/Materials | Discovered new exit (range 8) 399 | -9/Materials | Identified exit to Mines 515 | -9/Materials | Discovered new exit (range 6) 517 | -9/Materials | Identified exit to Materials 525 | -9/Materials | Entered another Materials area 525 | -8/Materials | Accompanied by 1 ally 525 | -8/Materials | Evolved 2 slots: Propulsion x1, Utility x1 743 | -8/Materials | Discovered new exit (range 16) 747 | -8/Materials | Discovered new exit (range 16) 772 | -8/Materials | Identified exit to Storage 779 | -8/Materials | Entered Storage 893 | -8/Storage | Discovered new exit (range 16) 897 | -8/Storage | Identified exit to Factory 898 | -8/Storage | Entered Factory 898 | -7/Factory | Evolved 2 slots: Utility x2 928 | -7/Factory | Lost 3 parts (1p2n) 978 | -7/Factory | Build established: Scout 1242 | -7/Factory | Repaired Cesium-ion Thruster 1471 | -7/Factory | Repaired Sensor Array? 1556 | -7/Factory | Discovered new exit (range 15) 1564 | -7/Factory | Identified exit to Lower Caves 1582 | -7/Factory | Discovered new exit (range 6) 1585 | -7/Factory | Identified exit to Factory 1617 | -7/Factory | Repaired Utility Shielding 1756 | -7/Factory | Entered another Factory area 1756 | -6/Factory | Evolved 2 slots: Propulsion x1, Utility x1 2027 | -6/Factory | Lost 4 parts (3n1u) 2070 | -6/Factory | Discovered new exit (range 22) 2078 | -6/Factory | Identified exit to Extension 2078 | -6/Factory | Entered Extension 2276 | -6/Extension | Lost 5 parts (2n3u) 2295 | -6/Extension | Rescued A7 2324 | -6/Extension | Lost 4 parts (1p2n1w) 2519 | -6/Extension | Spotted B-75 Beast 2524 | -6/Extension | Rescued a captive Derelict 2530 | -6/Extension | Spotted B-75 Beast 2542 | -6/Extension | Core integrity fell below 50% 2550 | -6/Extension | Allies destroyed B-75 Beast 2571 | -6/Extension | Allies destroyed B-75 Beast 2594 | -6/Extension | Lost 6 parts (1p4n1u) 2751 | -6/Extension | Rescued a captive Derelict 2751 | -6/Extension | Rescued a captive Derelict 2770 | -6/Extension | Rescued a captive Derelict 2873 | -6/Extension | Build established: Scavenger-Mutant 2922 | -6/Extension | Rescued a captive Derelict 2923 | -6/Extension | Rescued a captive Derelict 3258 | -6/Extension | Discovered new exit (range 10) 3260 | -6/Extension | Discovered new exit (range 6) 3282 | -6/Extension | Identified exit to Cetus 3293 | -6/Extension | Entered Cetus 3293 | -6/Cetus | Accompanied by 11 allies (A7) 3298 | -6/Cetus | Acquired a Cetus Manufacturing Module code from A7 3311 | -6/Cetus | Spotted Cetus Guard 3311 | -6/Cetus | Spotted Cetus Guard 3311 | -6/Cetus | Spotted Cetus Guard 3311 | -6/Cetus | Spotted Cetus Guard 3317 | -6/Cetus | Extracted ID and sensor layout for unrecognized location from A7's data core 3333 | -6/Cetus | Destroyed Cetus Guard 3334 | -6/Cetus | Allies destroyed Cetus Guard 3338 | -6/Cetus | Allies destroyed Cetus Guard 3340 | -6/Cetus | Destroyed Cetus Guard 3364 | -6/Cetus | Lost 4 allies 3445 | -6/Cetus | Started Cetus Manufacturing Module 3470 | -6/Cetus | Manufactured an Enhanced Grunt 3495 | -6/Cetus | Manufactured an Enhanced Grunt 3520 | -6/Cetus | Manufactured an Enhanced Grunt 3545 | -6/Cetus | Manufactured an Enhanced Grunt 3570 | -6/Cetus | Manufactured an Enhanced Grunt 3606 | -6/Cetus | Discovered new exit (range 21) 3636 | -6/Cetus | Spotted Cetus Guard 3665 | -6/Cetus | Identified exit to Archives 3674 | -6/Cetus | Entered Archives 3674 | -6/Archives | Accompanied by 12 allies 3730 | -6/Archives | Discovered new exit (range 21) 3739 | -6/Archives | Lost 3 allies 3770 | -6/Archives | Discovered new exit (range 22) 3778 | -6/Archives | Unable to access archive contents 3786 | -6/Archives | Discovered new exit (range 22) 3794 | -6/Archives | Unable to access archive contents 3812 | -6/Archives | Unable to access archive contents 3830 | -6/Archives | Unable to access archive contents 3863 | -6/Archives | Identified exit to Hub_04(d) 3924 | -6/Archives | Identified exit to Factory 4037 | -6/Archives | Entered Hub_04(d) 4037 | -6/Hub_04(d) | Accompanied by 9 allies 4154 | -6/Hub_04(d) | Discovered exit to Factory (range 13) 4242 | -6/Hub_04(d) | Entered Factory 4242 | -5/Factory | Accompanied by 8 allies 4242 | -5/Factory | Evolved 2 slots: Weapon x2 4454 | -5/Factory | Garrison activated, responded to threat 4613 | -5/Factory | Repaired Med. Reflective Plating 4698 | -5/Factory | Lost 3 allies 4733 | -5/Factory | Allied Derelicts emerged from ambush trap array 4747 | -5/Factory | Build established: Scavenger-Tank 4840 | -5/Factory | Lost 5 allies 4961 | -5/Factory | Core integrity fell below 50% 4970 | -5/Factory | Discovered new exit (range 12) 4976 | -5/Factory | Entered Upper Caves 5000 | -5/Upper Caves | Lost 14 parts (1p4n4u5w) 5169 | -5/Upper Caves | Learned location of Warlord (-5) 5176 | -5/Upper Caves | Discovered new exit (range 15) 5183 | -5/Upper Caves | Attracted the attention of an 0b10 checkpoint 5188 | -5/Upper Caves | Entered another Upper Caves area 5261 | -5/Upper Caves | Core integrity fell below 20% 5265 | -5/Upper Caves | Build established: Mutant 5269 | -5/Upper Caves | Lost 4 parts (2n2u) 5342 | -5/Upper Caves | Lost 3 parts (2n1u) 5431 | -5/Upper Caves | Attracted the attention of an 0b10 checkpoint 5441 | -5/Upper Caves | Destroyed by H-66 Slayer with Heavy Assault Rifle Last Messages --------------- 05308_ Dropped Mak. Shrapnel Gun. 05309_ Dropped Rnf. Deuterium Engine. 05311_ Penetrated by Slug. 05311_ Focal Shield destroyed. 05311_ Acquired 34 matter. 05311_ Penetrated by Slug. 05311_ Slug penetrates Wall. 05357_ Slug penetrates H-66 Slayer. 05357_ Slug penetrates Wall. 05357_ Mni. Grenade Launcher destroyed. 05375_ Searching scrap... 05375_ Found Adv. Targeting Computer. 05375_ Found 66 Matter. 05376_ Acquired 10 matter. 05388_ OZ-8PL(k) breaks down the debris. 05430_ Slug penetrates Wall. 05431_ Y-64 Sentinel: "INTERCEPTING UNREGISTERED DERELICT." 05437_ Penetrated by Slug. 05440_ Slug penetrates Wall. Map ----- +----------------------------------------------------+ | ??????????????????????## #?????###???## | | ??????????????????????# #???# ##???## | | ??????????????????????? ### ##???## ##### | | ???????????????????????? ##???# #???? | | ????????????????????????? ????# #???? | | ?????????????????????????# ??????# ???? | | ?????????????????????????# ????????## #???? | | ?????????????????????????# ???????????###?##?? | | ??????????????????????????# #???????????????## #? | | ????????????????????????### #???????????????# # | | ????????????????????????# ##??????????????# # | | ?????????????? ???????## ##??????????????? # | | ????????????? ??????#### #????????????????# | | ????????????? ????????# #??????????????#### | | ????????????? ??????## ########??????## ## | | ?????????????# ????### ## ######## # | | ?????????????# ??## # | | ?????????????# ??# ## | | ?????????????# #?# ## ### # # | | ?????????????#$ Y ## ## #?# | | ???????????????????# h #?## | | ???????????????????# S #??## ### | | ???????????????????# #####???# #?# | | ???????????????????## ##??????# #?? | | ????????????????????#### ##?????# #?? | | ???????????????????????##@ #?????# #?? | | ????????????????????????# ## #????# #?? | | ?????????????????????##?# ##### ??? ? | | ??????????????????#### ## #????# ?? | | ??????????????????# #???? ###?#?#?? | | ?????????????????# #???? #???????? | | ?????????????????## ###????# ##???????? | | ??????????????????##############???????##????????? | | ?????????????????????????????????????????????????? | | ?????????????????????????????????????????????????? | | ?????????????????????????????????????????????????? | | ?????????????????????????????????????????????????? | | ?????????????????????????????????????????????????? | | ?????????????????????????????????????????????????? | | ?????????????????????????????????????????????????? | | ?????????????????????????????????????????????????? | | ?????????????????????????????????????????????????? | | ?????????????????????????????????????????????????? | | ?????????????????????????????????????????????????? | | ?????????????????????????????????????????????????? | | ?????????????????????????????????????????????????? | | ?????????????????????????????????????????????????? | | ?????????????????????????????????????????????????? | | | | | +----------------------------------------------------+ Best States ------------- Heat Dissipation 86 Energy Generation 21 Energy Capacity 325 Matter Stores 300 Matter Capacity 300 Sight Range 22 Robot Scan Range 14 Terrain Scan Range 16 Terrain Scan Density 210 Additional Mass Support 9 Corruption Block 15 Armor Coverage 450 Resistance: KI 20 Resistance: TH 15 Utility Shielding 33 Melee Speed Boost 20 Phase Shifting 5 Evasion (%) 65 Core Analysis 6 Recoil Reduction 5 Offensive Hacking 14 Item Schematics ----------------- Imp. Terrain Scanner | -9/Materials | Scanalyzed Imp. Flight Unit | -9/Materials | Scanalyzed Xenon Bombardment Thruster | -6/Factory | Scanalyzed Robot Schematics ------------------ None Fabricated ------------ Nothing Alien Tech Used ----------------- None Achievements -------------- Knowing Is Half The Battle Oh No You Don't! Project G-00 Challenges ------------ None Game ------ Seed RestorationInertialSystem Manual? 0 Play Time 01:52:20 Cumulative 81.1 hours Start 2025.03.25 @ 12:46:27 End 2025.03.25 @ 21:08:18 Sessions 3 Manual Loads 0 Difficulty Rogue Special Mode None Game No. 124 Rogue 124 Adventurer 0 Explorer 0 Win Type - Total 1 Types 1/0/0/0/0/0/0/0/0 Lore% 30 Gallery% 47 Achievement% 40 Wizard Run 0 Options --------- Layout 1 ASCII 1 Keyboard 0 Movement Numpad Keybinds 0 Fullscreen 1 Font 24/Smallcaps Map View 50x35 Zoom Use 0% Tactical HUD 1 Map Filters NONE Filters NONE Steam 1 RUN: b7b80e71-799c-4e52-86a4-ea24a57ab7f6